lending/lending_fUSD_20240603
["ID","MTS","AMOUNT","RATE_DAILY","PERIOD"]
[328467146,1717421453060,-500.0,0.00033173,4]
[328467147,1717421453074,-500.0,0.00033173,4]
[328467148,1717421453083,-500.0,0.00033173,4]
[328467149,1717421453092,-500.0,0.00033173,4]
[328467150,1717421453102,-500.0,0.00033173,4]
[328467151,1717421453112,-500.0,0.00033173,4]
[328467152,1717421453122,-500.0,0.00033173,4]
[328467153,1717421453132,-500.0,0.00033173,4]
[328467154,1717421453141,-500.0,0.00033173,4]
[328467155,1717421453150,-500.0,0.00033173,4]
[328467156,1717421453161,-500.0,0.00033173,4]
[328467157,1717421453171,-500.0,0.00033173,4]
[328467158,1717421453180,-500.0,0.00033173,4]
[328467159,1717421453189,-500.0,0.00033173,4]
[328467160,1717421453199,-500.0,0.00033173,4]
[328467161,1717421453208,-500.0,0.00033173,4]
[328467162,1717421453217,-500.0,0.00033173,4]
[328467163,1717421453227,-500.0,0.00033173,4]
[328467164,1717421453236,-500.0,0.00033173,4]
[328467165,1717421453245,-500.0,0.00033173,4]
[328467166,1717421453256,-637.25,0.00033173,4]
[328467167,1717421453265,-500.0,0.00033173,4]
[328467168,1717421453275,-500.0,0.00033173,4]
[328467169,1717421453284,-500.0,0.00033173,4]
[328467170,1717421453293,-500.0,0.00033173,4]
[328467171,1717421453303,-500.0,0.00033173,4]
[328467172,1717421453312,-500.0,0.00033173,4]
[328467173,1717421453321,-500.0,0.00033173,4]
[328467174,1717421453330,-500.0,0.00033173,4]
[328467175,1717421453340,-500.0,0.00033173,4]
[328467176,1717421453349,-500.0,0.00033173,4]
[328467177,1717421453358,-500.0,0.00033173,4]
[328467178,1717421453367,-500.0,0.00033173,4]
[328467179,1717421453378,-500.0,0.00033173,4]
[328467180,1717421453387,-500.0,0.00033173,4]
[328467181,1717421453396,-500.0,0.00033173,4]
[328467182,1717421453405,-500.0,0.00033173,4]
[328467183,1717421453415,-526.14829605,0.00033173,4]
[328467184,1717421453424,-500.0,0.00033173,4]
[328467185,1717421453434,-500.0,0.00033173,4]
[328467186,1717421453442,-500.0,0.00033173,4]
[328467187,1717421453451,-500.0,0.00033173,4]
[328467188,1717421453460,-507.23623488,0.00033173,4]
[328467189,1717421453469,-500.0,0.00033173,4]
[328467190,1717421453478,-500.0,0.00033173,4]
[328467191,1717421453488,-313.85042564,0.00033173,4]
[328467192,1717421453497,-500.0,0.00033173,4]
[328467193,1717421453506,-500.0,0.00033173,4]
[328467194,1717421453516,-500.0,0.00033173,4]
[328467195,1717421453525,-500.0,0.00033173,4]
[328467196,1717421453535,-500.0,0.00033173,4]
[328467197,1717421453543,-500.0,0.00033173,4]
[328467198,1717421453553,-401.38,0.00033173,4]
[328467199,1717421453562,-510.97526948,0.00033173,4]
[328467200,1717421453571,-328.83426325,0.00033173,4]
[328467201,1717421453580,-500.0,0.00033173,4]
[328467202,1717421453589,-533.40712163,0.00033173,4]
[328467203,1717421453598,-500.0,0.00033173,4]
[328467204,1717421453608,-500.0,0.00033173,4]
[328467205,1717421453617,-500.0,0.00033173,4]
[328467206,1717421453628,-570.05138864,0.00033173,4]
[328467207,1717421453637,-500.0,0.00033173,4]
[328467208,1717421453646,-500.0,0.00033173,4]
[328467209,1717421453655,-500.0,0.00033173,4]
[328467210,1717421453665,-500.0,0.00033173,4]
[328467211,1717421453674,-500.0,0.00033173,4]
[328467212,1717421453683,-500.0,0.00033173,4]
[328467213,1717421453692,-171.30200043,0.00033173,4]
[328467214,1717421453702,-500.0,0.00033173,4]
[328467215,1717421453711,-514.48343777,0.00033173,4]
[328467216,1717421453720,-500.0,0.00033173,4]
[328467217,1717421453729,-500.0,0.00033173,4]
[328467218,1717421453739,-416.52338285,0.00033173,4]
[328467219,1717421453748,-500.0,0.00033173,4]
[328467220,1717421453757,-500.0,0.00033173,4]
[328467221,1717421453767,-500.0,0.00033173,4]
[328467222,1717421453776,-522.7749188,0.00033173,4]
[328467223,1717421453785,-500.0,0.00033173,4]
[328467224,1717421453795,-168.7,0.00033173,4]
[328467225,1717421453804,-500.0,0.00033173,4]
[328467226,1717421453813,-500.0,0.00033173,4]
[328467227,1717421453822,-507.27750777,0.00033173,4]
[328467228,1717421453831,-500.0,0.00033173,4]
[328467229,1717421453840,-410.57122071,0.00033173,4]
[328467230,1717421453850,-501.1079163,0.00033173,4]
[328467231,1717421453859,-519.79076963,0.00033173,4]
[328467232,1717421453869,-509.73091221,0.00033173,4]
[328467233,1717421453879,-236.36,0.00033173,4]
[328467234,1717421453888,-521.29889516,0.00033173,4]
[328467235,1717421453898,-500.0,0.00033173,4]
[328467236,1717421453907,-270.78,0.00033173,4]
[328467237,1717421453917,-500.0,0.00033176,4]
[328467238,1717421453926,-500.0,0.00033176,4]
[328467239,1717421453935,-178.17,0.00033176,4]
[328467240,1717421453944,-174.15984609,0.00033177,5]
[328467241,1717421453953,-539.56572104,0.00033177,5]
[328467242,1717421453962,-165.4292042,0.00033177,5]
[328467243,1717421453971,-413.71404664,0.00033177,2]
[328467244,1717421453980,-539.56572104,0.00033179,5]
[328467245,1717421453989,-539.56572104,0.00033181,5]
[328467246,1717421453999,-539.56572104,0.00033183,5]
[328467247,1717421454009,-150.0,0.00033185,2]
[328467248,1717421454018,-539.56572104,0.00033185,5]
[328467249,1717421454028,-150.0,0.00033187,2]
[328467250,1717421454037,-539.56572104,0.00033187,5]
[328467251,1717421454047,-539.56572104,0.0003319,5]
[328467252,1717421454056,-500.0,0.00033191,4]
[328467253,1717421454068,-539.56572104,0.00033192,5]
[328467254,1717421454077,-150.0,0.00033193,2]
[328467255,1717421454090,-539.56572104,0.00033194,5]
[328467256,1717421454099,-782.0,0.00033194,2]
[328467257,1717421454108,-675.0,0.00033194,2]
[328467258,1717421454119,-539.56572104,0.00033196,5]
[328467259,1717421454129,-539.56572104,0.00033198,5]
[328467260,1717421454138,-150.0,0.00033198,2]
[328467261,1717421454147,-4000.0,0.00033199,2]
[328467262,1717421454156,-539.56572104,0.000332,5]
[328467263,1717421454167,-161.65578759,0.000332,15]
[328467264,1717421454177,-627.38555518,0.000332,15]
[328467265,1717421454186,-223.96076558,0.000332,2]
[328467266,1717421454195,-338.72196272,0.000332,2]
[328467267,1717421454204,-150.0,0.000332,7]
[328467268,1717421454214,-5648.69603441,0.000332,2]
[328467269,1717421454223,-1868.32889261,0.000332,2]
[328467270,1717421454232,-654.72926774,0.000332,2]
[328467271,1717421454242,-150.0,0.00033202,2]
[328467272,1717421454251,-150.0,0.00033206,2]
[328467273,1717421454260,-150.0,0.00033209,2]
[328467274,1717421454270,-150.0,0.00033214,2]
[328467275,1717421454279,-150.0,0.00033226,2]
[328467276,1717421454288,-150.0,0.00033233,2]
[328467277,1717421454298,-150.0,0.00033234,2]
[328467278,1717421454308,-150.0,0.00033243,2]
[328467279,1717421454316,-150.0,0.00033244,2]
[328467280,1717421454326,-150.0,0.00033247,2]
[328467281,1717421454335,-150.0,0.00033247,2]
[328467282,1717421454344,-150.0,0.00033256,2]
[328467283,1717421454353,-150.0,0.0003326,7]
[328467284,1717421454362,-150.0,0.00033264,2]
[328467285,1717421454371,-319.64122527,0.00033267,2]
[328467286,1717421454381,-300.0,0.0003327,2]
[328467287,1717421454390,-150.5,0.0003327,15]
[328467288,1717421454400,-150.5,0.0003327,15]
[328467289,1717421454409,-150.0,0.0003327,2]
[328467290,1717421454418,-150.0,0.0003327,2]
[328467291,1717421454427,-150.0,0.00033274,2]
[328467292,1717421454437,-500.0,0.00033276,4]
[328467293,1717421454446,-500.0,0.00033276,4]
[328467294,1717421454454,-40955.49394916,0.00033277,2]
[328467295,1717421454692,-2959.43237245,0.00033277,2]
[328467296,1717421454703,-20693.84393762,0.00033277,2]
[328467297,1717421454715,-7307.83809027,0.00033277,2]
[328467298,1717421454724,-75942.16190973,0.00033277,2]
[328467299,1717421454735,-1236.13216261,0.00033277,2]
[328467300,1717421454746,-2772.33852396,0.00033277,2]
[328467301,1717421454756,-463.60564841,0.00033277,2]
[328467302,1717421454768,-87521.05119469,0.00033277,2]
[328467303,1717421454778,-96018.6810898,0.00033277,2]
[328467304,1717421454788,-104052.7053366,0.00033277,2]
[328467305,1717421454797,-3733.833893,0.00033277,2]
[328467306,1717421454808,-4150.9518957,0.00033277,2]
[328467307,1717421454818,-4568.0698983,0.00033277,2]
[328467308,1717421454828,-4985.1879009,0.00033277,2]
[328467309,1717421454838,-5402.3059036,0.00033277,2]
[328467310,1717421454848,-9536.2940076,0.00033277,2]
[328467311,1717421454858,-10601.6225742,0.00033277,2]
[328467312,1717421454867,-11666.9511407,0.00033277,2]
[328467313,1717421454878,-12732.2797072,0.00033277,2]
[328467314,1717421454887,-13797.6082737,0.00033277,2]
[328467315,1717421454896,-150.0,0.00033278,2]
[328467316,1717421454906,-150.0,0.00033279,2]
[328467317,1717421454916,-150.5,0.0003328,15]
[328467318,1717421454925,-150.5,0.0003328,15]
[328467319,1717421454934,-150.5,0.0003328,15]
[328467320,1717421454944,-150.0,0.0003328,2]
[328467321,1717421454953,-150.0,0.00033281,2]
[328467322,1717421454962,-150.0,0.00033285,2]
[328467323,1717421454972,-150.0,0.00033285,2]
[328467324,1717421454980,-150.0,0.00033285,2]
[328467325,1717421454989,-302.42,0.00033285,2]
[328467326,1717421454998,-43943.0,0.00033288,4]
[328467327,1717421455008,-1348.0,0.00033288,4]
[328467328,1717421455017,-151.0,0.00033288,7]
[328467329,1717421455027,-151.0,0.00033288,7]
[328467330,1717421455037,-150.0,0.00033289,2]
[328467331,1717421455046,-165.0,0.0003329,26]
[328467332,1717421455055,-150.5,0.0003329,15]
[328467333,1717421455067,-150.5,0.0003329,15]
[328467334,1717421455076,-150.5,0.0003329,15]
[328467335,1717421455086,-150.5,0.0003329,15]
[328467336,1717421455095,-150.5,0.0003329,15]
[328467337,1717421455104,-245.14,0.0003329,15]
[328467338,1717421455115,-500.0,0.0003329,4]
[328467339,1717421455125,-150.5,0.0003329,15]
[328467340,1717421455134,-319.64122527,0.0003329,2]
[328467341,1717421455146,-150.0,0.00033291,2]
[328467342,1717421455155,-150.0,0.00033297,2]
[328467343,1717421455164,-523.25885466,0.00033297,2]
[328467344,1717421455174,-222.80919985,0.00033298,4]
[328467345,1717421455182,-670.67,0.00033298,4]
[328467346,1717421455191,-1250.74942759,0.00033298,4]
[328467347,1717421455200,-155.72154428,0.00033298,4]
[328467348,1717421455210,-635.46294521,0.00033298,4]
[328467349,1717421455219,-161.36197756,0.00033298,30]
[328467350,1717421455228,-693.65595668,0.00033298,4]
[328467351,1717421455238,-150.01,0.00033298,2]
[328467352,1717421455247,-1191.00185665,0.00033298,4]
[328467353,1717421455256,-1363.40050218,0.00033298,4]
[328467354,1717421455266,-473.55131997,0.00033298,4]
[328467355,1717421455275,-222.67094305,0.00033298,4]
[328467356,1717421455284,-236.75541475,0.00033298,4]
[328467357,1717421455293,-266.05356728,0.00033298,4]
[328467358,1717421455302,-267.96249102,0.00033298,4]
[328467359,1717421455311,-207.43016171,0.00033298,4]
[328467360,1717421455321,-401.16336102,0.00033298,4]
[328467361,1717421455330,-600.02441303,0.00033298,2]
[328467362,1717421455340,-263.80355269,0.00033298,4]
[328467363,1717421455349,-242.17234097,0.00033298,4]
[328467364,1717421455358,-1690.87815907,0.00033298,4]
[328467365,1717421455368,-649.56705433,0.00033298,4]
[328467366,1717421455378,-801.10384678,0.00033298,4]
[328467367,1717421455387,-176.79566034,0.00033298,4]
[328467368,1717421455397,-414.37265856,0.00033298,15]
[328467369,1717421455407,-285.62417363,0.00033298,4]
[328467370,1717421455416,-3023.6114962,0.00033298,2]
[328467371,1717421455425,-306.00607341,0.00033298,4]
[328467372,1717421455434,-155.0,0.00033298,4]
[328467373,1717421455443,-659.73181939,0.00033298,4]
[328467374,1717421455452,-164.99574182,0.00033298,4]
[328467375,1717421455462,-799.89337506,0.00033298,4]
[328467376,1717421455471,-155.44409595,0.00033298,4]
[328467377,1717421455479,-408.52002494,0.00033298,4]
[328467378,1717421455488,-410.08555038,0.00033298,4]
[328467379,1717421455497,-237.20973575,0.00033298,4]
[328467380,1717421455507,-237.22996103,0.00033298,4]
[328467381,1717421455516,-184.82678736,0.00033298,4]
[328467382,1717421455525,-161.73963544,0.00033298,4]
[328467383,1717421455534,-215.84388429,0.00033298,4]
[328467384,1717421455543,-451.25012379,0.00033298,4]
[328467385,1717421455552,-318.017811,0.00033298,4]
[328467386,1717421455561,-523.81480906,0.00033298,4]
[328467387,1717421455570,-200.78650338,0.00033298,4]
[328467388,1717421455580,-1274.02294122,0.00033298,4]
[328467389,1717421455589,-156.22688712,0.00033298,4]
[328467390,1717421455598,-339.08721062,0.00033298,4]
[328467391,1717421455608,-383.45368792,0.00033298,4]
[328467392,1717421455617,-35378.96571757,0.00033298,4]
[328467393,1717421455627,-2213.3483688,0.00033298,4]
[328467394,1717421455636,-1126.99054307,0.00033298,4]
[328467395,1717421455645,-235.93657142,0.00033298,4]
[328467396,1717421455654,-1249.88651912,0.00033298,4]
[328467397,1717421455663,-326.15186733,0.00033298,4]
[328467398,1717421455672,-195.02071198,0.00033298,4]
[328467399,1717421455682,-237.26982006,0.00033298,4]
[328467400,1717421455691,-10934.72962016,0.00033298,4]
[328467401,1717421455700,-430.0637463,0.00033298,4]
[328467402,1717421455710,-449.65142724,0.00033298,4]
[328467403,1717421455719,-226.3668805,0.00033298,4]
[328467404,1717421455729,-155.58439691,0.00033298,4]
[328467405,1717421455738,-155.86730534,0.00033298,4]
[328467406,1717421455747,-155.24290461,0.00033298,4]
[328467407,1717421455757,-225.25381657,0.00033298,4]
[328467408,1717421455766,-151.0,0.00033298,7]
[328467409,1717421455775,-493.5968,0.00033298,4]
[328467410,1717421455784,-151.0,0.00033298,7]
[328467411,1717421455793,-458.54402215,0.00033299,30]
[328467412,1717421455802,-191674.09169319,0.00033299,30]
[328467413,1717421455815,-279.7230004,0.00033299,30]
[328467414,1717421455857,-1266.0,0.00031799,2]
[328467415,1717421455866,-1941.56,0.00033299,30]
[328467416,1717421455878,-827.28025688,0.00033299,30]
[328467417,1717421455889,-361.89999998,0.00033299,30]
[328467418,1717421455900,-2200.0,0.00033299,30]
[328467419,1717421455911,-2026.77504163,0.00033299,30]
[328467420,1717421455921,-500.0,0.00033299,30]
[328467421,1717421455932,-438.04818526,0.00033299,30]
[328467422,1717421455943,-295.21458624,0.00033299,30]
[328467423,1717421455954,-348.315,0.00033299,30]
[328467424,1717421455966,-550.18428788,0.00033299,30]
[328467425,1717421582861,150.0,0.00019725,2]
[328467426,1717421623054,289.66478697,0.00019725,2]
[328467427,1717421624629,752327.84819018,0.00014,2]
[328467428,1717421639252,343.20178446,0.00019725,2]
[328467429,1717421666368,6471.1890797,0.00017259,2]
[328467430,1717421672367,12315.76944001,0.00019725,2]
[328467431,1717421722212,5000.0,0.000251,10]
[328467523,1717422632584,-536.28063783,0.00024184,2]
[328467525,1717422632596,-4126.11796217,0.00024184,2]
[328467527,1717422632607,-157.08,0.00024384,2]
[328467528,1717422632618,-157.75,0.00024384,2]
[328467529,1717422632627,-184.48900677,0.00025,2]
[328467530,1717422632636,-241.28467853,0.00025,2]
[328467531,1717422632646,-161.75454521,0.00025,2]
[328467532,1717422632656,-322.45777267,0.00025,2]
[328467533,1717422632665,-618.19,0.0002509,3]
[328467534,1717422632675,-618.15,0.0002509,3]
[328467535,1717422632685,-969.60211798,0.0002509,2]
[328467536,1717422632694,-499.99,0.0002509,2]
[328467537,1717422632704,-500.0,0.00025099,2]
[328467538,1717422632713,-500.0,0.00025099,2]
[328467539,1717422632723,-441.79647225,0.00025099,2]
[328467540,1717422632733,-228.72815904,0.00025099,2]
[328467541,1717422632743,-7960.19874885,0.00025099,2]
[328467542,1717422632752,-1188.0,0.000251,3]
[328467543,1717422632762,-16133.68933653,0.000251,2]
[328467544,1717422632774,-3244.55441955,0.000251,2]
[328467545,1717422632785,-2796.76,0.000251,2]
[328467546,1717422632850,-1528.35103245,0.000251,2]
[328467584,1717422638475,-59349.85657966,0.000251,2]
[328467590,1717422638488,-349.235,0.000251,2]
[328467684,1717422639769,-57909.09495867,0.000251,2]
[328467685,1717422639781,-9732.96927663,0.000251,2]
[328467686,1717422639793,-193826.44571134,0.000251,2]
[328467687,1717422639805,-9207.09796182,0.000251,2]
[328467688,1717422639817,-512.21218739,0.000251,2]
[328467689,1717422639962,-1270.30556187,0.000251,2]
[328467690,1717422639974,-176634.65199568,0.000251,2]
[328467691,1717422639989,-15977.88840412,0.000251,2]
[328467692,1717422639999,-155.0,0.000251,2]
[328467693,1717422640008,-150.99,0.000251,2]
[328467694,1717422640017,-301.35,0.00025256,2]
[328467695,1717422640027,-447.0,0.000253,3]
[328467696,1717422640036,-250.0,0.00025351,2]
[328467697,1717422640046,-1000.0,0.00025482,2]
[328467698,1717422640057,-250.0,0.00025617,2]
[328467699,1717422640066,-10968.0,0.000257,5]
[328467700,1717422640077,-900.73,0.00025739,2]
[328467701,1717422640087,-184.48900674,0.00025911,2]
[328467702,1717422640097,-241.28467853,0.00026171,2]
[328467703,1717422640106,-11206.5509113,0.00026354,7]
[328467704,1717422640117,-492.10282983,0.00026639,2]
[328467705,1717422640127,-461.99,0.00026729,2]
[328467706,1717422640136,-184.48900674,0.00026822,2]
[328467707,1717422640145,-21459.27,0.00027086,2]
[328467708,1717422640155,-1797.92,0.00027218,2]
[328467709,1717422640164,-1797.92,0.00027225,2]
[328467710,1717422640174,-1797.92,0.00027233,2]
[328467711,1717422640186,-1797.92,0.0002724,2]
[328467712,1717422640196,-1797.92,0.00027247,2]
[328467713,1717422640205,-1797.92,0.00027254,2]
[328467714,1717422640215,-1797.92,0.00027261,2]
[328467715,1717422640226,-1797.92,0.00027268,2]
[328467716,1717422640236,-1797.92,0.00027275,2]
[328467717,1717422640247,-1797.92,0.00027283,2]
[328467718,1717422640257,-1797.92,0.0002729,2]
[328467719,1717422640268,-1797.92,0.00027297,2]
[328467720,1717422640277,-1797.92,0.00027304,2]
[328467721,1717422640287,-1797.92,0.00027311,2]
[328467722,1717422640297,-1797.92,0.00027318,2]
[328467723,1717422640306,-1797.92,0.00027326,2]
[328467724,1717422640316,-1797.92,0.00027333,2]
[328467725,1717422640325,-1797.92,0.0002734,2]
[328467726,1717422640335,-241.28467853,0.00027343,2]
[328467727,1717422640344,-1797.92,0.00027347,2]
[328467729,1717422640354,-1797.92,0.00027354,2]
[328467731,1717422640365,-176.04,0.00027397,10]
[328467732,1717422640378,-184.48900674,0.00027733,2]
[328467733,1717422640387,-161.75454518,0.00027733,2]
[328467734,1717422640397,-900.73,0.00028479,2]
[328467735,1717422640407,-241.28467853,0.00028514,2]
[328467736,1717422640425,-184.48900674,0.00028644,2]
[328467737,1717422640437,-1000.0,0.00028667,2]
[328467738,1717422640447,-461.99,0.00028993,2]
[328467739,1717422640459,-184.48900674,0.00029556,2]
[328467740,1717422640470,-241.28467853,0.00029686,2]
[328467741,1717422640479,-200.0,0.000299,10]
[328467742,1717422640488,-156.35946454,0.00030036,2]
[328467743,1717422640498,-500.0,0.00030136,4]
[328467744,1717422640510,-506.13,0.00030136,4]
[328467745,1717422640519,-500.0,0.00030136,4]
[328467746,1717422640530,-500.0,0.00030136,4]
[328467748,1717422640539,-500.0,0.00030136,4]
[328467750,1717422640551,-500.0,0.00030136,4]
[328467751,1717422640561,-500.0,0.00030136,4]
[328467754,1717422640571,-500.0,0.00030136,4]
[328467756,1717422640580,-195.50616035,0.00030136,4]
[328467758,1717422640589,-500.0,0.00030136,4]
[328467760,1717422640599,-500.0,0.00030136,4]
[328467762,1717422640607,-500.0,0.00030136,4]
[328467764,1717422640619,-500.0,0.00030136,4]
[328467766,1717422640628,-500.0,0.00030136,4]
[328467768,1717422640638,-500.0,0.00030136,4]
[328467770,1717422640647,-500.0,0.00030136,4]
[328467772,1717422640657,-500.0,0.00030136,4]
[328467774,1717422640666,-549.82860283,0.00030136,4]
[328467776,1717422640676,-500.0,0.00030136,4]
[328467778,1717422640685,-500.0,0.00030136,4]
[328467780,1717422640695,-500.0,0.00030136,4]
[328467782,1717422640705,-500.0,0.00030136,4]
[328467784,1717422640714,-500.0,0.00030136,4]
[328467786,1717422640726,-500.0,0.00030136,4]
[328467788,1717422640735,-500.0,0.00030136,4]
[328467790,1717422640746,-500.0,0.00030136,4]
[328467792,1717422640756,-826.53,0.00030136,4]
[328467794,1717422640766,-954.32,0.00030136,4]
[328467796,1717422640775,-500.0,0.00030136,4]
[328467798,1717422640785,-500.0,0.00030136,4]
[328467800,1717422640794,-500.0,0.00030136,4]
[328467802,1717422640804,-500.0,0.00030136,4]
[328467804,1717422640814,-917.3,0.00030136,4]
[328467806,1717422640824,-500.0,0.00030136,4]
[328467808,1717422640835,-500.0,0.00030136,4]
[328467810,1717422640845,-500.0,0.00030136,4]
[328467812,1717422640854,-500.0,0.00030136,4]
[328467814,1717422640865,-500.0,0.00030136,4]
[328467816,1717422640876,-500.0,0.00030136,4]
[328467818,1717422640886,-260.50328061,0.00030136,4]
[328467820,1717422640895,-500.0,0.00030136,4]
[328467822,1717422640905,-500.0,0.00030136,4]
[328467824,1717422640914,-411.24010273,0.00030136,4]
[328467826,1717422640924,-500.0,0.00030136,4]
[328467828,1717422640934,-500.0,0.00030136,4]
[328467830,1717422640944,-500.0,0.00030136,4]
[328467832,1717422640955,-500.0,0.00030136,4]
[328467834,1717422640964,-500.0,0.00030136,4]
[328467836,1717422640974,-500.0,0.00030136,4]
[328467838,1717422640983,-500.0,0.00030136,4]
[328467840,1717422640993,-500.0,0.00030136,4]
[328467842,1717422641003,-508.20525946,0.00030136,4]
[328467844,1717422641013,-500.0,0.00030136,4]
[328467846,1717422641023,-500.0,0.00030136,4]
[328467848,1717422641033,-500.0,0.00030136,4]
[328467851,1717422641046,-500.0,0.00030136,4]
[328467853,1717422641056,-500.0,0.00030136,4]
[328467855,1717422641066,-500.0,0.00030136,4]
[328467857,1717422641076,-500.0,0.00030136,4]
[328467859,1717422641087,-500.0,0.00030136,4]
[328467861,1717422641098,-500.0,0.00030136,4]
[328467863,1717422641108,-500.0,0.00030136,4]
[328467865,1717422641121,-500.0,0.00030136,4]
[328467867,1717422641132,-500.0,0.00030136,4]
[328467869,1717422641142,-502.56774787,0.00030136,4]
[328467871,1717422641152,-500.0,0.00030136,4]
[328467873,1717422641161,-500.0,0.00030136,4]
[328467875,1717422641171,-500.0,0.00030136,4]
[328467877,1717422641181,-500.0,0.00030136,4]
[328467879,1717422641191,-449.14562634,0.00030136,4]
[328467881,1717422641202,-524.01118277,0.00030136,4]
[328467883,1717422641212,-500.0,0.00030136,4]
[328467885,1717422641222,-500.0,0.00030136,4]
[328467887,1717422641233,-500.0,0.00030136,4]
[328467889,1717422641243,-500.0,0.00030136,4]
[328467891,1717422641253,-500.0,0.00030136,4]
[328467893,1717422641263,-500.0,0.00030136,4]
[328467895,1717422641273,-500.0,0.00030136,4]
[328467897,1717422641283,-500.0,0.00030136,4]
[328467899,1717422641292,-500.0,0.00030136,4]
[328467901,1717422641302,-500.0,0.00030136,4]
[328467903,1717422641311,-817.05,0.00030136,4]
[328467905,1717422641321,-500.0,0.00030136,4]
[328467907,1717422641331,-500.0,0.00030136,4]
[328467909,1717422641340,-500.0,0.00030136,4]
[328467911,1717422641351,-444.23409727,0.00030136,4]
[328467913,1717422641360,-500.0,0.00030136,4]
[328467915,1717422641373,-500.0,0.00030136,4]
[328467917,1717422641382,-969.99,0.00030136,4]
[328467919,1717422641391,-968.76,0.00030136,4]
[328467921,1717422641401,-500.0,0.00030136,4]
[328467923,1717422641411,-500.0,0.00030136,4]
[328467925,1717422641421,-500.0,0.00030136,4]
[328467926,1717422641431,-500.0,0.00030136,4]
[328467927,1717422641440,-500.0,0.00030136,4]
[328467928,1717422641451,-1390.78,0.00030136,4]
[328467929,1717422641463,-500.0,0.00030136,4]
[328467930,1717422641474,-500.0,0.00030136,4]
[328467932,1717422641484,-500.0,0.00030136,4]
[328467934,1717422641494,-500.0,0.00030136,4]
[328467935,1717422641507,-500.0,0.00030136,4]
[328467936,1717422641517,-500.0,0.00030136,4]
[328467937,1717422641527,-500.0,0.00030136,4]
[328467938,1717422641539,-500.0,0.00030136,4]
[328467939,1717422641549,-656.6,0.00030136,4]
[328467940,1717422641559,-3112.4,0.00030136,4]
[328467941,1717422641570,-346.12,0.00030136,4]
[328467942,1717422641580,-525.39,0.00030136,4]
[328467943,1717422641590,-500.0,0.00030136,4]
[328467944,1717422641600,-520.85765538,0.00030136,4]
[328467945,1717422641610,-500.0,0.00030136,4]
[328467946,1717422641623,-500.0,0.00030136,4]
[328467947,1717422641633,-500.0,0.00030136,4]
[328467948,1717422641643,-525.65319203,0.00030136,4]
[328467949,1717422641652,-500.0,0.00030136,4]
[328467950,1717422641661,-533.89131072,0.00030136,4]
[328467951,1717422641671,-500.0,0.00030136,4]
[328467952,1717422641681,-766.23,0.00030136,4]
[328467953,1717422641690,-500.0,0.00030136,4]
[328467954,1717422641700,-200.1419829,0.00030136,4]
[328467955,1717422641710,-500.0,0.00030136,4]
[328467956,1717422641720,-500.0,0.00030136,4]
[328467957,1717422641729,-500.0,0.00030136,4]
[328467958,1717422641739,-500.0,0.00030136,4]
[328467959,1717422641750,-500.0,0.00030136,4]
[328467960,1717422641760,-198.03750293,0.00030136,4]
[328467961,1717422641770,-500.0,0.00030136,4]
[328467962,1717422641780,-500.0,0.00030136,4]
[328467963,1717422641790,-500.0,0.00030136,4]
[328467964,1717422641800,-500.0,0.00030136,4]
[328467965,1717422641810,-500.0,0.00030136,4]
[328467966,1717422641819,-500.0,0.00030136,4]
[328467967,1717422641829,-500.0,0.00030136,4]